[Event "World Junior U20 Girls 2018"]
[Site "Gebze"]
[Date "2018.09.08"]
[Round "5"]
[White "Stanciu, Ioana-Georgiana"]
[Black "Sankova, Stella"]
[Result "1/2-1/2"]
[ECO "B90"]
[WhiteElo "2000"]
[BlackElo "2081"]
[Annotator "NA RC"]
[PlyCount "114"]
[EventDate "2018.09.05"]
[EventType "swiss"]
[EventCountry "TUR"]
[SourceTitle "playchess.com"]
[Source "ChessBase"]
[SourceQuality "1"]
[TimeControl "40/5400+30:1800+30"]

1. e4 {[%emt 0:00:30]} c5 {[%emt 0:00:30]} 2. Nf3 {[%emt 0:00:30]} d6 {[%emt 0:00:30]} 3. d4 {[%emt 0:00:30]} cxd4 {[%emt 0:00:00]} 4. Nxd4 {[%emt 0:00:30]} Nf6 {[%emt 0:00:00]} 5. Nc3 {[%emt 0:00:30]} a6 {[%emt 0:00:30]} 6. h3 {[%emt 0:00:00]} e5 {[%emt 0:00:00]} 7. Nde2 {[%emt 0:00:00]} h5 {[%emt 0:00:00] B90: Sicilian Najdorf: Unusual White 6th moves, 6 Be3 Ng4 and 6 Be3 e5} (7... b5 8. Ng3 Qc7 9. Bd3 g6 10. O-O Bg7 11. Bd2 O-O 12. a4 b4 13. Na2 a5 14. c3 bxc3 15. Nxc3 Be6 {½-½ (40) Svidler,P (2760)-Khismatullin,D (2632) Sochi 2018}) 8. Bg5 {[%emt 0:00:30]} Be6 {[%emt 0:00:00]} 9. Nd5 {[%emt 0:04:30]} Bxd5 {[%emt 0:07:00]} 10. exd5 {[%emt 0:00:30]} Be7 $146 {[%emt 0:06:30]} ({Predecessor:} 10... Qa5+ 11. Nc3 Ne4 12. Bd2 Nxd2 13. Qxd2 g6 14. Ne4 Qxd2+ 15. Nxd2 {0-1 (54) Bivol,A (2207)-Sardana,R (2316) Barbera del Valles 2013}) 11. c4 {[%emt 0:01:30]} Nbd7 {[%emt 0:06:30]} 12. Nc3 {[%emt 0:01:30]} Qa5 {[%emt 0:17:30]} 13. Qd2 {[%emt 0:02:30]} Nc5 {[%emt 0:01:30]} 14. Rb1 {[%emt 0:12:30]} Nfe4 {[%emt 0:05:30]} 15. Nxe4 {[%emt 0:00:30]} Qxd2+ {[%emt 0:00:30]} 16. Bxd2 {[%emt 0:00:30]} Nxe4 {[%emt 0:00:00]} 17. Be3 {[%emt 0:00:30]} Rc8 {[%emt 0:05:00]} 18. Bd3 {[%emt 0:03:30]} Nc5 {[%emt 0:01:30]} 19. Be2 {[%emt 0:06:30]} f5 {[%emt 0:03:30]} 20. f3 {[%emt 0:00:30]} Kf7 {[%emt 0:09:30]} 21. b4 {[%emt 0:05:30]} Nd7 {[%emt 0:00:30]} 22. Kd2 {[%emt 0:00:30]} Kg6 {[%emt 0:03:30]} 23. g4 {[%emt 0:13:30]} hxg4 {[%emt 0:06:30]} 24. hxg4 {[%emt 0:01:30]} fxg4 {[%emt 0:04:30]} 25. Bd3+ {[%emt 0:03:30]} Kf7 {[%emt 0:00:30]} 26. fxg4 {[%emt 0:05:30]} Rxh1 {[%emt 0:01:30]} 27. Rxh1 {[%emt 0:00:00]} e4 {[%emt 0:00:34]} 28. Rf1+ {[%emt 0:05:00]} Kg8 {[%emt 0:00:26]} 29. Be2 {[%emt 0:09:30]} Ne5 {[%emt 0:00:30]} 30. Rc1 {[%emt 0:02:44]} Kf7 {[%emt 0:03:06]} 31. Bf4 {[%emt 0:07:06]} Ng6 {[%emt 0:02:47]} 32. Be3 {[%emt 0:01:17]} Ne5 {[%emt 0:00:19]} 33. Ke1 {[%emt 0:01:39]} Ke8 {[%emt 0:03:14]} 34. Kf1 {[%emt 0:03:35]} Kd7 {[%emt 0:00:47]} 35. c5 {[%emt 0:01:02]} Bd8 {[%emt 0:03:52]} 36. Kg2 {[%emt 0:01:26]} Be7 {[%emt 0:00:34]} 37. g5 {[%emt 0:01:27]} Rf8 {[%emt 0:01:03]} 38. Rf1 {[%emt 0:01:01]} Rc8 {[%emt 0:00:44]} 39. Bf4 {[%emt 0:00:50]} Nf3 {[%emt 0:00:33]} 40. c6+ {[%emt 0:03:42]} bxc6 {[%emt 0:00:00]} 41. Bxa6 {[%emt 0:00:11]} Rh8 {[%emt 0:05:01]} 42. dxc6+ {[%emt 0:08:30]} Kxc6 {[%emt 0:00:30]} 43. a4 {[%emt 0:00:30]} d5 {[%emt 0:00:30]} 44. Rc1+ {[%emt 0:00:30]} Kb6 {[%emt 0:01:30]} 45. b5 {[%emt 0:11:02]} Bxg5 {[%emt 0:04:30]} 46. Bc7+ {[%emt 0:01:28]} Ka7 {[%emt 0:00:30]} 47. Rc6 {[%emt 0:03:19]} Nh4+ {[%emt 0:08:30]} 48. Kf1 {[%emt 0:00:48]} Rf8+ {[%emt 0:00:30]} 49. Ke2 {[%emt 0:00:04]} Nf5 {[%emt 0:09:01]} 50. Bb6+ {[%emt 0:00:29]} Kb8 {[%emt 0:00:13]} 51. Bc7+ {[%emt 0:04:17]} Ka7 {[%emt 0:00:09]} 52. Be5 {[%emt 0:00:19]} d4 {[%emt 0:02:48]} 53. Rc7+ {[%emt 0:03:11]} Kb6 {[%emt 0:00:33]} 54. Rb7+ $2 {[%emt 0:02:17]} (54. Rd7 {was worth a try.} d3+ 55. Ke1) 54... Ka5 {[%emt 0:03:43]} 55. Bc7+ {[%emt 0:00:33]} Kb4 {[%emt 0:00:30]} 56. b6 {[%emt 0:00:00]} Kc3 {[%emt 0:02:51]} 57. Be5 {[%emt 0:00:00]} Ng3+ $18 {[%emt 0:02:21]} (57... Kb4 $11 {und Schwarz muss sich keine Sorgen machen.} 58. Ra7 d3+ 59. Bxd3 exd3+ 60. Kxd3 Be3) 1/2-1/2

[Event "World Junior U20 Girls 2018"]
[Site "Gebze"]
[Date "2018.09.08"]
[Round "5"]
[White "Nastase, Andreea-Cristina"]
[Black "Bai, Xue"]
[Result "0-1"]
[ECO "D41"]
[WhiteElo "1983"]
[BlackElo "2073"]
[Annotator "NA"]
[PlyCount "88"]
[EventDate "2018.09.05"]
[EventType "swiss"]
[EventCountry "TUR"]
[SourceTitle "playchess.com"]
[Source "ChessBase"]
[SourceQuality "1"]
[TimeControl "40/5400+30:1800+30"]

1. d4 {[%emt 0:00:30]} d5 {[%emt 0:00:30]} 2. c4 {[%emt 0:00:00]} e6 {[%emt 0:00:30]} 3. Nc3 {[%emt 0:00:00]} Nf6 {[%emt 0:00:30]} 4. cxd5 {[%emt 0:00:30]} Nxd5 {[%emt 0:00:00]} 5. e4 {[%emt 0:00:00]} Nxc3 {[%emt 0:00:00]} 6. bxc3 {[%emt 0:00:00]} c5 {[%emt 0:00:00]} 7. Nf3 {[%emt 0:01:30]} cxd4 {[%emt 0:00:00]} 8. cxd4 {[%emt 0:00:00]} Nc6 {[%emt 0:00:30]} 9. Bc4 {[%emt 0:01:00]} Bb4+ {[%emt 0:08:30]} 10. Bd2 {[%emt 0:00:30]} Qa5 {[%emt 0:09:30]} 11. d5 {[%emt 0:01:30]} Bxd2+ {[%emt 0:07:30]} 12. Qxd2 {[%emt 0:00:30]} Qxd2+ {[%emt 0:00:00]} 13. Kxd2 {[%emt 0:00:30]} Na5 {[%emt 0:00:00]} 14. Bb5+ {[%emt 0:00:30]} Ke7 {[%emt 0:01:30]} 15. Rhd1 {[%emt 0:02:30]} a6 {[%emt 0:06:30]} 16. Be2 {[%emt 0:00:30]} exd5 {[%emt 0:10:30]} 17. exd5 {[%emt 0:01:30]} Bg4 {[%emt 0:00:30]} 18. Ke1 {[%emt 0:04:30]} Rhd8 {[%emt 0:11:30]} 19. h3 {[%emt 0:02:30]} Bxf3 {[%emt 0:00:30]} 20. Bxf3 {[%emt 0:00:00]} Kd6 {[%emt 0:00:30]} 21. Rab1 {[%emt 0:02:00]} b5 {[%emt 0:01:30]} 22. a4 {[%emt 0:00:30]} Rab8 {[%emt 0:00:30]} 23. axb5 {[%emt 0:00:30]} axb5 {[%emt 0:00:30]} 24. Ra1 {[%emt 0:00:00]} Nc4 {[%emt 0:00:30]} 25. Ra6+ {[%emt 0:00:00]} Rb6 {[%emt 0:00:30]} 26. Rxb6+ {[%emt 0:01:30]} Nxb6 {[%emt 0:00:00]} 27. Rb1 {[%emt 0:00:30]} Kc5 {[%emt 0:00:00]} 28. Rc1+ {[%emt 0:00:30]} Nc4 {[%emt 0:00:30]} 29. Ke2 {[%emt 0:00:30]} Kd4 {[%emt 0:00:30]} 30. Rb1 {[%emt 0:01:30]} Re8+ {[%emt 0:01:30]} 31. Kd1 {[%emt 0:00:30]} Rb8 {[%emt 0:01:30]} 32. Ke1 {[%emt 0:02:30]} b4 {[%emt 0:00:30]} 33. Rd1+ {[%emt 0:02:30]} Ke5 {[%emt 0:00:30]} 34. Rc1 {[%emt 0:01:30]} Nd6 {[%emt 0:01:30]} 35. Ke2 {[%emt 0:03:30]} Nb5 {[%emt 0:09:30]} 36. Kd3 {[%emt 0:02:30]} Na3 {[%emt 0:00:30]} 37. Re1+ {[%emt 0:00:30]} Kd6 {[%emt 0:00:30]} 38. Re2 {[%emt 0:02:30]} Kc5 {[%emt 0:01:30]} 39. Re7 {[%emt 0:07:30]} b3 {[%emt 0:02:30]} 40. Be4 {[%emt 0:00:00]} b2 {[%emt 0:00:00]} 41. Ke2 {[%emt 0:02:00]} Rb4 {[%emt 0:09:00]} 42. Bd3 {[%emt 0:00:00]} Rd4 {[%emt 0:00:30]} 43. Rxf7 {[%emt 0:02:00]} Rxd3 {[%emt 0:00:30]} 44. Rb7 {[%emt 0:00:00]} Nb5 {[%emt 0:00:00]} 0-1

[Event "World Junior U20 Girls 2018"]
[Site "Gebze"]
[Date "2018.09.08"]
[Round "5"]
[White "Celik, Eda"]
[Black "Rousseau, Christilla"]
[Result "1/2-1/2"]
[ECO "B19"]
[WhiteElo "1970"]
[BlackElo "1677"]
[Annotator "NA RC"]
[PlyCount "132"]
[EventDate "2018.09.05"]
[EventType "swiss"]
[EventCountry "TUR"]
[SourceTitle "playchess.com"]
[Source "ChessBase"]
[SourceQuality "1"]
[TimeControl "40/5400+30:1800+30"]

1. e4 {[%emt 0:00:30]} c6 {[%emt 0:00:30]} 2. d4 {[%emt 0:00:00]} d5 {[%emt 0:00:30]} 3. Nc3 {[%emt 0:00:00]} dxe4 {[%emt 0:00:00]} 4. Nxe4 {[%emt 0:00:00]} Bf5 {[%emt 0:00:00]} 5. Ng3 {[%emt 0:00:00]} Bg6 {[%emt 0:00:30]} 6. h4 {[%emt 0:00:30]} h6 {[%emt 0:00:30]} 7. Nf3 {[%emt 0:00:30]} Nd7 {[%emt 0:00:30]} 8. h5 {[%emt 0:00:30]} Bh7 {[%emt 0:01:30]} 9. Bd3 {[%emt 0:00:00]} Bxd3 {[%emt 0:00:00]} 10. Qxd3 {[%emt 0:00:00]} e6 {[%emt 0:00:00]} 11. Bf4 {[%emt 0:00:30]} Ngf6 {[%emt 0:00:30]} 12. O-O-O {[%emt 0:01:30]} Be7 {[%emt 0:01:30]} 13. Kb1 {[%emt 0:01:30] B19: Classical Caro-Kann: 4...Bf5 main line} (13. Ne5 O-O 14. c4 c5 15. d5 Bd6 16. Ng6 Bxf4+ 17. Nxf4 Qc7 18. Qe3 Nb6 19. b3 exd5 20. Nf5 Ne4 21. Nxd5 Nxd5 22. Rxd5 {½-½ (33) Bernadskiy,V (2544)-Jobava,B (2683) Ureki 2015}) 13... Nd5 {[%emt 0:02:30]} 14. Bd2 {[%emt 0:00:30]} Qb6 {[%emt 0:05:30]} 15. c4 {[%emt 0:07:30]} N5f6 {[%emt 0:01:30]} 16. Bc3 {[%emt 0:02:30]} O-O {[%emt 0:10:30]} 17. Ne4 {[%emt 0:02:30]} Nxe4 $146 {[%emt 0:06:30]} ({Predecessor:} 17... Rad8 18. Nxf6+ Nxf6 19. Ne5 {½-½ (31) Paramonov,D (2311)-Slapikas,V (2378) Klaipeda 2002}) 18. Qxe4 {[%emt 0:00:30]} Nf6 {[%emt 0:00:30]} 19. Qe2 {[%emt 0:00:30]} Rfd8 {[%emt 0:08:30]} 20. Ne5 {[%emt 0:12:30]} a5 {[%emt 0:15:30]} 21. f4 {[%emt 0:18:30]} Bb4 {[%emt 0:08:30]} 22. Qf3 {[%emt 0:08:30]} Bxc3 {[%emt 0:07:30]} 23. Qxc3 {[%emt 0:00:00]} c5 {[%emt 0:02:30]} 24. dxc5 {[%emt 0:03:00]} Rxd1+ {[%emt 0:02:30]} 25. Rxd1 {[%emt 0:00:30]} Qxc5 {[%emt 0:00:00]} 26. Qf3 {[%emt 0:04:30]} Qc7 {[%emt 0:07:27]} 27. g4 {[%emt 0:03:30]} Rd8 {[%emt 0:03:38]} 28. Re1 {[%emt 0:13:30]} Nd7 {[%emt 0:07:40]} 29. b3 {[%emt 0:02:26]} Nxe5 {[%emt 0:01:33]} 30. Rxe5 {[%emt 0:03:13]} Qd7 {[%emt 0:01:14]} 31. Rxa5 {[%emt 0:10:07]} Qd2 {[%emt 0:00:18]} 32. Re5 {[%emt 0:01:13]} Ra8 {[%emt 0:02:19]} 33. a4 {[%emt 0:02:28]} Rd8 {[%emt 0:00:11]} 34. Re2 {[%emt 0:03:27]} Qd1+ {[%emt 0:00:07]} 35. Kb2 {[%emt 0:00:00]} Rd2+ {[%emt 0:00:31]} 36. Rxd2 {[%emt 0:00:34]} Qxf3 {[%emt 0:00:08]} 37. Rd8+ {[%emt 0:00:51]} Kh7 {[%emt 0:00:06]} 38. Rd7 {[%emt 0:00:05]} Qxg4 {[%emt 0:00:49]} 39. Rxf7 {[%emt 0:00:21]} Qxh5 {[%emt 0:03:12]} 40. Rxb7 {[%emt 0:00:00]} Qh2+ {[%emt 0:00:00]} 41. Ka3 {[%emt 0:00:45]} Qxf4 {[%emt 0:02:17]} 42. a5 {[%emt 0:11:30]} Qd6+ {[%emt 0:06:30]} 43. Ka4 {[%emt 0:00:30]} Qc6+ {[%emt 0:00:30]} 44. Rb5 {[%emt 0:00:00]} e5 {[%emt 0:01:30]} 45. Kb4 {[%emt 0:00:00]} e4 {[%emt 0:03:30]} 46. Rb6 {[%emt 0:00:00]} Qc7 {[%emt 0:01:30]} 47. Re6 {[%emt 0:02:11]} Qb7+ {[%emt 0:04:14]} 48. Kc3 {[%emt 0:01:07]} h5 {[%emt 0:04:24]} 49. Re5 {[%emt 0:02:46]} Kh6 {[%emt 0:01:39]} 50. Kd4 {[%emt 0:00:20]} Qxb3 {[%emt 0:02:10]} 51. Rxe4 {[%emt 0:00:04]} Qb7 {[%emt 0:04:53]} 52. Re6+ {[%emt 0:01:11]} g6 {[%emt 0:00:30]} 53. a6 {[%emt 0:00:00]} Qd7+ {[%emt 0:00:14]} 54. Ke5 {[%emt 0:00:00]} Kg5 {[%emt 0:00:27]} 55. c5 {[%emt 0:00:34]} h4 {[%emt 0:00:55]} 56. Rd6 {[%emt 0:01:02]} Qc7 {[%emt 0:00:40]} 57. Kd5 {[%emt 0:00:12]} h3 {[%emt 0:01:58]} 58. Rc6 {[%emt 0:00:07]} Qxc6+ {[%emt 0:00:46]} 59. Kxc6 {[%emt 0:00:30]} h2 {[%emt 0:00:00]} 60. Kb7 {[%emt 0:02:00]} h1=Q+ {[%emt 0:00:08]} 61. c6 {[%emt 0:00:00]} Qh7+ {[%emt 0:00:35]} 62. c7 {[%emt 0:00:00]} Qd7 $11 {[%emt 0:00:52]} (62... Qh1+ $19 63. Kb8 Qb1+ 64. Ka8 Qf5) 63. a7 $1 {[%emt 0:01:10]} Qb5+ {[%emt 0:00:22]} 64. Kc8 {[%emt 0:03:46]} Qa6+ {[%emt 0:01:28]} 65. Kb8 {[%emt 0:00:05]} Qb6+ {[%emt 0:00:14]} 66. Ka8 {[%emt 0:00:09]} Qxc7 {[%emt 0:01:16]} 1/2-1/2

[Event "World Junior U20 Girls 2018"]
[Site "Gebze"]
[Date "2018.09.08"]
[Round "5"]
[White "Vujcic, Milena"]
[Black "Yorgun, Yaren Naz"]
[Result "1/2-1/2"]
[ECO "C00"]
[WhiteElo "1955"]
[BlackElo "1751"]
[Annotator "NA"]
[PlyCount "73"]
[EventDate "2018.09.05"]
[EventType "swiss"]
[EventCountry "TUR"]
[SourceTitle "playchess.com"]
[Source "ChessBase"]
[SourceQuality "1"]
[TimeControl "40/5400+30:1800+30"]

1. e4 {[%emt 0:00:30]} e6 {[%emt 0:00:30]} 2. Qe2 {[%emt 0:00:00]} c5 {[%emt 0:00:30]} 3. Nf3 {[%emt 0:00:00]} Nc6 {[%emt 0:00:30]} 4. g3 {[%emt 0:00:30]} g6 {[%emt 0:01:30]} 5. Bg2 {[%emt 0:00:30]} Bg7 {[%emt 0:00:00]} 6. O-O {[%emt 0:00:00]} Nge7 {[%emt 0:00:00]} 7. d3 {[%emt 0:00:00]} O-O {[%emt 0:01:30]} 8. Nbd2 {[%emt 0:00:30]} d6 {[%emt 0:01:30]} 9. Re1 {[%emt 0:00:00]} a6 {[%emt 0:05:30]} 10. Nf1 {[%emt 0:02:00]} Nd4 {[%emt 0:06:30]} 11. Nxd4 {[%emt 0:01:30]} Bxd4 {[%emt 0:01:30]} 12. Bh6 {[%emt 0:09:30]} Bg7 {[%emt 0:05:30]} 13. Bxg7 {[%emt 0:00:30]} Kxg7 {[%emt 0:00:30]} 14. Ne3 {[%emt 0:04:30]} Rb8 {[%emt 0:06:30]} 15. Kh1 {[%emt 0:09:30]} Bd7 {[%emt 0:18:30]} 16. f4 {[%emt 0:02:30]} f5 {[%emt 0:07:30]} 17. e5 {[%emt 0:08:30]} dxe5 {[%emt 0:09:30]} 18. fxe5 {[%emt 0:00:30]} b5 {[%emt 0:00:30]} 19. Qf2 {[%emt 0:09:30]} Bc6 {[%emt 0:01:30]} 20. Bxc6 {[%emt 0:09:30]} Nxc6 {[%emt 0:00:30]} 21. Ng2 {[%emt 0:00:00]} Qd4 {[%emt 0:02:30]} 22. Qxd4 {[%emt 0:00:00]} Nxd4 {[%emt 0:01:30]} 23. Rac1 {[%emt 0:01:30]} Rfd8 {[%emt 0:00:30]} 24. c3 {[%emt 0:08:30]} Nc6 {[%emt 0:00:30]} 25. Nf4 {[%emt 0:01:30]} Kf7 {[%emt 0:02:30]} 26. h4 {[%emt 0:07:30]} Ne7 {[%emt 0:02:30]} 27. Red1 {[%emt 0:01:30]} Rb7 {[%emt 0:01:30]} 28. Rc2 {[%emt 0:01:30]} Nd5 {[%emt 0:01:30]} 29. Nxd5 {[%emt 0:00:30]} Rxd5 {[%emt 0:00:30]} 30. d4 {[%emt 0:00:30]} Rbd7 {[%emt 0:00:30]} 31. Rcd2 {[%emt 0:00:00]} Ke7 {[%emt 0:01:34]} 32. Kg2 {[%emt 0:01:00]} Rd8 {[%emt 0:01:53]} 33. Kf3 {[%emt 0:00:30]} c4 {[%emt 0:01:44]} 34. Ke3 {[%emt 0:01:30]} h5 {[%emt 0:01:35]} 35. b3 {[%emt 0:06:31]} Rc8 {[%emt 0:00:55]} 36. Rc1 {[%emt 0:00:39]} Rd7 {[%emt 0:00:48]} 37. Rb2 {[%emt 0:00:51]} 1/2-1/2

[Event "World Junior U20 Girls 2018"]
[Site "Gebze"]
[Date "2018.09.08"]
[Round "5"]
[White "Kyrkjebo, Hanna B"]
[Black "Gur, Tuba"]
[Result "1-0"]
[ECO "B40"]
[WhiteElo "1947"]
[BlackElo "1724"]
[Annotator "NA"]
[PlyCount "55"]
[EventDate "2018.09.05"]
[EventType "swiss"]
[EventCountry "TUR"]
[SourceTitle "playchess.com"]
[Source "ChessBase"]
[SourceQuality "1"]
[TimeControl "40/5400+30:1800+30"]

1. e4 {[%emt 0:01:30]} c5 {[%emt 0:00:30]} 2. Nf3 {[%emt 0:00:30]} e6 {[%emt 0:00:30]} 3. b3 {[%emt 0:00:00]} b6 {[%emt 0:00:00]} 4. Bd3 {[%emt 0:00:00]} Bb7 {[%emt 0:00:00]} 5. O-O {[%emt 0:00:00]} Nf6 {[%emt 0:00:30]} 6. e5 {[%emt 0:03:00]} Nd5 {[%emt 0:00:30]} 7. Be4 {[%emt 0:03:30]} Nc6 {[%emt 0:06:30]} 8. c4 {[%emt 0:03:30]} Nde7 {[%emt 0:02:30]} 9. d4 {[%emt 0:03:30]} cxd4 {[%emt 0:00:30]} 10. Nxd4 {[%emt 0:00:30]} Ng6 {[%emt 0:06:30]} 11. Nf3 {[%emt 0:10:30]} Qc7 {[%emt 0:06:30]} 12. Bb2 {[%emt 0:01:30]} Be7 {[%emt 0:04:30]} 13. Re1 {[%emt 0:04:30]} O-O {[%emt 0:00:30]} 14. Nc3 {[%emt 0:02:30]} a6 {[%emt 0:02:30]} 15. Rc1 {[%emt 0:08:30]} Rfd8 {[%emt 0:10:30]} 16. Nd5 {[%emt 0:14:30]} exd5 {[%emt 0:01:30]} 17. cxd5 {[%emt 0:00:30]} Bc5 {[%emt 0:00:30]} 18. dxc6 {[%emt 0:01:30]} dxc6 {[%emt 0:00:30]} 19. Qc2 {[%emt 0:01:30]} a5 {[%emt 0:06:30]} 20. e6 {[%emt 0:06:30]} Nf8 {[%emt 0:13:30]} 21. Ng5 {[%emt 0:17:23]} Nxe6 {[%emt 0:07:30]} 22. Bxh7+ {[%emt 0:01:42]} Kh8 {[%emt 0:01:30]} 23. Rxe6 {[%emt 0:03:28]} Qf4 {[%emt 0:01:30]} 24. Re5 {[%emt 0:06:12]} Bd6 {[%emt 0:08:55]} 25. g3 {[%emt 0:00:50]} Qxc1+ {[%emt 0:06:20]} 26. Bxc1 {[%emt 0:01:51]} Rd7 {[%emt 0:01:02]} 27. Re1 {[%emt 0:01:32]} Rad8 {[%emt 0:01:23]} 28. Bg8 {[%emt 0:01:19]} 1-0

[Event "World Junior U20 Girls 2018"]
[Site "Gebze"]
[Date "2018.09.08"]
[Round "5"]
[White "Kyrkjebo, Marte B"]
[Black "Bail, Ellen Larissa"]
[Result "1/2-1/2"]
[ECO "B27"]
[WhiteElo "1935"]
[BlackElo "1832"]
[Annotator "NA"]
[PlyCount "79"]
[EventDate "2018.09.05"]
[EventType "swiss"]
[EventCountry "TUR"]
[SourceTitle "playchess.com"]
[Source "ChessBase"]
[SourceQuality "1"]
[TimeControl "40/5400+30:1800+30"]

1. e4 {[%emt 0:00:30]} c5 {[%emt 0:00:30]} 2. Nf3 {[%emt 0:00:30]} g6 {[%emt 0:00:30]} 3. d4 {[%emt 0:00:30]} cxd4 {[%emt 0:00:30]} 4. Qxd4 {[%emt 0:00:00]} Nf6 {[%emt 0:00:00]} 5. Nc3 {[%emt 0:00:00]} Nc6 {[%emt 0:00:00]} 6. Qa4 {[%emt 0:00:30]} d6 {[%emt 0:01:30]} 7. e5 {[%emt 0:01:30]} dxe5 {[%emt 0:00:30]} 8. Nxe5 {[%emt 0:00:30]} Bg7 {[%emt 0:08:30]} 9. Bb5 {[%emt 0:18:30]} Bd7 {[%emt 0:01:30]} 10. Nxc6 {[%emt 0:05:30]} bxc6 {[%emt 0:01:30]} 11. Bxc6 {[%emt 0:03:30]} Qc7 {[%emt 0:31:30]} 12. Bxd7+ {[%emt 0:05:30]} Nxd7 {[%emt 0:00:30]} 13. O-O {[%emt 0:09:30]} Bxc3 {[%emt 0:00:30]} 14. bxc3 {[%emt 0:00:30]} O-O {[%emt 0:01:30]} 15. Be3 {[%emt 0:06:30]} Rfd8 {[%emt 0:07:30]} 16. Qb4 {[%emt 0:09:30]} Nf6 {[%emt 0:07:30]} 17. Qc5 {[%emt 0:05:30]} Rdc8 {[%emt 0:21:16]} 18. Qxc7 {[%emt 0:15:16]} Rxc7 {[%emt 0:00:09]} 19. Bd4 {[%emt 0:01:12]} Nd5 {[%emt 0:00:25]} 20. Rfe1 {[%emt 0:02:23]} Nxc3 {[%emt 0:00:44]} 21. Bxc3 {[%emt 0:01:31]} Rxc3 {[%emt 0:00:07]} 22. Rxe7 {[%emt 0:01:40]} Rxc2 {[%emt 0:00:09]} 23. Kf1 {[%emt 0:01:20]} Rd8 {[%emt 0:04:48]} 24. Re2 {[%emt 0:02:47]} Rdd2 {[%emt 0:01:22]} 25. Rxd2 {[%emt 0:01:50]} Rxd2 {[%emt 0:00:08]} 26. a3 {[%emt 0:01:45]} Kg7 {[%emt 0:01:25]} 27. Re1 {[%emt 0:02:35]} Rd3 {[%emt 0:03:31]} 28. Re3 {[%emt 0:00:35]} Rxe3 {[%emt 0:00:37]} 29. fxe3 {[%emt 0:00:02]} Kf6 {[%emt 0:00:00]} 30. Kf2 {[%emt 0:00:27]} h5 {[%emt 0:02:42]} 31. Kf3 {[%emt 0:01:06]} Ke5 {[%emt 0:00:28]} 32. Ke2 {[%emt 0:00:35]} Ke4 {[%emt 0:00:55]} 33. Kd2 {[%emt 0:01:18]} g5 {[%emt 0:01:47]} 34. h3 {[%emt 0:01:02]} f5 {[%emt 0:01:06]} 35. Ke2 {[%emt 0:00:33]} f4 {[%emt 0:01:04]} 36. exf4 {[%emt 0:00:23]} Kxf4 {[%emt 0:00:11]} 37. Kf2 {[%emt 0:00:40]} h4 {[%emt 0:00:41]} 38. Ke2 {[%emt 0:00:31]} Ke4 {[%emt 0:00:37]} 39. Kd2 {[%emt 0:00:31]} Kf4 {[%emt 0:00:37]} 40. Ke2 {[%emt 0:00:45]} 1/2-1/2

[Event "World Junior U20 Girls 2018"]
[Site "Gebze"]
[Date "2018.09.08"]
[Round "5"]
[White "Salah, Nadezhda"]
[Black "Schneider, Jana"]
[Result "0-1"]
[ECO "A25"]
[WhiteElo "1918"]
[BlackElo "2190"]
[Annotator "NA"]
[PlyCount "84"]
[EventDate "2018.09.05"]
[EventType "swiss"]
[EventCountry "TUR"]
[SourceTitle "playchess.com"]
[Source "ChessBase"]
[SourceQuality "1"]
[TimeControl "40/5400+30:1800+30"]

1. c4 {[%emt 0:00:30]} e5 {[%emt 0:03:30]} 2. Nc3 {[%emt 0:00:30]} Nc6 {[%emt 0:00:30]} 3. e3 {[%emt 0:00:30]} Bc5 {[%emt 0:05:30]} 4. a3 {[%emt 0:07:30]} a6 {[%emt 0:03:30]} 5. b4 {[%emt 0:02:30]} Ba7 {[%emt 0:00:00]} 6. Qg4 {[%emt 0:01:30]} Kf8 {[%emt 0:05:00]} 7. Nd5 {[%emt 0:07:30]} d6 {[%emt 0:04:30]} 8. Qg3 {[%emt 0:04:30]} Nge7 {[%emt 0:05:30]} 9. Bb2 {[%emt 0:09:30]} h5 {[%emt 0:09:30]} 10. f4 {[%emt 0:02:30]} Nf5 {[%emt 0:10:30]} 11. Qf2 {[%emt 0:01:30]} e4 {[%emt 0:12:30]} 12. Ne2 {[%emt 0:11:30]} Nfe7 {[%emt 0:02:30]} 13. Nec3 {[%emt 0:08:30]} Bf5 {[%emt 0:00:30]} 14. g3 {[%emt 0:18:30]} Nxd5 {[%emt 0:05:30]} 15. cxd5 {[%emt 0:01:59]} Nb8 {[%emt 0:00:30]} 16. Bg2 {[%emt 0:00:48]} Qe7 {[%emt 0:00:30]} 17. h3 {[%emt 0:00:15]} Nd7 {[%emt 0:08:45] [#]} 18. g4 $16 {[%emt 0:01:59]} hxg4 {[%emt 0:00:15]} 19. hxg4 {[%emt 0:00:22]} Rxh1+ {[%emt 0:00:30]} 20. Bxh1 {[%emt 0:00:00]} Bh7 {[%emt 0:00:30]} 21. Qh2 {[%emt 0:01:49]} Kg8 {[%emt 0:00:48]} 22. O-O-O {[%emt 0:05:43]} c6 {[%emt 0:00:56]} 23. Bg2 {[%emt 0:02:51]} cxd5 {[%emt 0:00:31]} 24. Rh1 {[%emt 0:00:54]} Nf8 {[%emt 0:00:30]} 25. Nxd5 {[%emt 0:00:00]} Qe6 {[%emt 0:00:27]} 26. Nc3 {[%emt 0:00:48]} Rc8 {[%emt 0:02:16]} 27. Kb1 {[%emt 0:00:34]} Qc4 {[%emt 0:04:21]} 28. Ka1 {[%emt 0:04:27]} d5 {[%emt 0:00:41]} 29. Qh5 {[%emt 0:00:17]} Rd8 {[%emt 0:04:08]} 30. g5 {[%emt 0:01:23]} Qd3 {[%emt 0:03:19]} 31. Qd1 {[%emt 0:00:11]} Qc4 {[%emt 0:01:10]} 32. Qh5 {[%emt 0:00:52]} Qd3 {[%emt 0:00:11]} 33. g6 {[%emt 0:01:40]} fxg6 {[%emt 0:00:45]} 34. Qe5 {[%emt 0:00:09]} Bb8 {[%emt 0:01:34]} 35. Qe7 {[%emt 0:00:17]} Rd7 {[%emt 0:00:13]} 36. Qe8 {[%emt 0:00:19]} Bd6 {[%emt 0:03:33]} 37. Bh3 {[%emt 0:00:16]} Re7 {[%emt 0:00:37]} 38. Qd8 {[%emt 0:00:10]} d4 {[%emt 0:00:00]} 39. Nd5 {[%emt 0:00:34]} Rf7 {[%emt 0:02:38]} 40. Be6 {[%emt 0:00:00]} dxe3 {[%emt 0:00:52]} 41. Bxf7+ {[%emt 0:01:53]} Kxf7 {[%emt 0:00:00]} 42. Qd7+ {[%emt 0:00:30]} Nxd7 {[%emt 0:00:30]} 0-1

[Event "World Junior U20 Girls 2018"]
[Site "Gebze"]
[Date "2018.09.08"]
[Round "5"]
[White "Doroy Allaney Jia G"]
[Black "Catal, Uktenur"]
[Result "1/2-1/2"]
[ECO "A28"]
[WhiteElo "1914"]
[BlackElo "1809"]
[Annotator "NA"]
[PlyCount "52"]
[EventDate "2018.09.05"]
[EventType "swiss"]
[EventCountry "TUR"]
[SourceTitle "playchess.com"]
[Source "ChessBase"]
[SourceQuality "1"]
[TimeControl "40/5400+30:1800+30"]

1. c4 {[%emt 0:00:30]} e5 {[%emt 0:00:30]} 2. Nc3 {[%emt 0:00:30]} Nf6 {[%emt 0:00:00]} 3. Nf3 {[%emt 0:00:30]} Nc6 {[%emt 0:00:00]} 4. d4 {[%emt 0:00:30]} exd4 {[%emt 0:00:30]} 5. Nxd4 {[%emt 0:00:30]} Bb4 {[%emt 0:00:30]} 6. e3 {[%emt 0:02:30]} Bxc3+ {[%emt 0:02:30]} 7. bxc3 {[%emt 0:00:30]} d6 {[%emt 0:00:30]} 8. Be2 {[%emt 0:00:30]} O-O {[%emt 0:00:30]} 9. O-O {[%emt 0:00:30]} Re8 {[%emt 0:00:30]} 10. Rb1 {[%emt 0:03:30]} Ne5 {[%emt 0:19:30]} 11. Qc2 {[%emt 0:05:30]} c5 {[%emt 0:07:30]} 12. Nf3 {[%emt 0:03:30]} Nc6 {[%emt 0:01:30]} 13. Bd3 {[%emt 0:09:30]} Qe7 {[%emt 0:02:30]} 14. Re1 {[%emt 0:07:30]} h6 {[%emt 0:05:30]} 15. e4 {[%emt 0:05:30]} Ng4 {[%emt 0:02:30]} 16. Bf4 {[%emt 0:03:30]} Nge5 {[%emt 0:00:30]} 17. Nd2 {[%emt 0:06:30]} Be6 {[%emt 0:02:30]} 18. Be2 {[%emt 0:03:30]} b6 {[%emt 0:06:30]} 19. Bg3 {[%emt 0:01:30]} Na5 {[%emt 0:01:30]} 20. Qa4 {[%emt 0:07:30]} Bd7 {[%emt 0:03:30]} 21. Qd1 {[%emt 0:01:30]} Be6 {[%emt 0:16:30]} 22. Qa4 {[%emt 0:11:30]} Bd7 {[%emt 0:01:30]} 23. Qd1 {[%emt 0:00:30]} Be6 {[%emt 0:01:30]} 24. Qa4 {[%emt 0:00:00]} Bd7 {[%emt 0:00:30]} 25. Qd1 {[%emt 0:00:00]} Be6 {[%emt 0:00:30]} 26. Qa4 {[%emt 0:00:30]} Bd7 {[%emt 0:00:30]} 1/2-1/2